fUST/lending_fUST_20240828
["ID","MTS","AMOUNT","RATE_DAILY","PERIOD"]
[336363243,1724791855160,-151.0,0.0001178,2]
[336363244,1724791855170,-500.0,0.0001178,2]
[336363245,1724791855180,-1367.25,0.0001178,2]
[336363246,1724791855190,-500.0,0.0001178,2]
[336363247,1724791855200,-500.0,0.0001178,2]
[336363248,1724791855210,-601.86,0.0001178,2]
[336363249,1724791855219,-500.0,0.0001178,2]
[336363250,1724791855229,-500.0,0.0001178,2]
[336363251,1724791855239,-500.0,0.0001178,2]
[336363252,1724791855249,-16362.44,0.0001178,2]
[336363253,1724791855258,-1299.46,0.0001178,2]
[336363254,1724791855268,-500.0,0.0001178,2]
[336363255,1724791855279,-151.0,0.0001178,2]
[336363256,1724791855289,-500.0,0.0001178,2]
[336363257,1724791855298,-500.0,0.0001178,2]
[336363258,1724791855308,-500.0,0.0001178,2]
[336363259,1724791855318,-500.0,0.0001178,2]
[336363260,1724791855328,-500.0,0.0001178,2]
[336363261,1724791855339,-500.0,0.0001178,2]
[336363262,1724791855349,-500.0,0.0001178,2]
[336363263,1724791855359,-500.0,0.0001178,2]
[336363264,1724791855368,-471.23518766,0.0001178,2]
[336363265,1724791855378,-2300.68,0.0001178,2]
[336363266,1724791855388,-419.515456,0.0001178,2]
[336363267,1724791855398,-6858.8,0.0001178,2]
[336363268,1724791855407,-500.0,0.0001178,2]
[336363269,1724791855417,-5721.29,0.0001178,2]
[336363270,1724791855438,-500.0,0.0001178,2]
[336363271,1724791855449,-234.453502,0.0001178,2]
[336363272,1724791855463,-419.515456,0.0001178,2]
[336363273,1724791855472,-500.0,0.0001178,2]
[336363274,1724791855483,-500.0,0.0001178,2]
[336363275,1724791855492,-234.453502,0.0001178,2]
[336363276,1724791855503,-272.3,0.0001178,2]
[336363277,1724791855514,-527.61979863,0.0001178,2]
[336363278,1724791855524,-5054.75,0.0001178,2]
[336363279,1724791855535,-500.0,0.0001178,2]
[336363280,1724791855545,-500.0,0.0001178,2]
[336363281,1724791855554,-500.0,0.0001178,2]
[336363282,1724791855564,-500.0,0.0001178,2]
[336363283,1724791855574,-500.0,0.0001178,2]
[336363284,1724791855584,-266.094717,0.0001178,2]
[336363285,1724791855593,-500.0,0.0001178,2]
[336363286,1724791855603,-8359.04,0.0001178,2]
[336363287,1724791855615,-266.094717,0.0001178,2]
[336363288,1724791855625,-152.831305,0.0001178,2]
[336363289,1724791855635,-500.0,0.0001178,2]
[336363290,1724791855645,-500.0,0.0001178,2]
[336363291,1724791855654,-500.0,0.0001178,2]
[336363292,1724791855664,-500.0,0.0001178,2]
[336363293,1724791855674,-500.0,0.0001178,2]
[336363294,1724791855683,-500.0,0.0001178,2]
[336363295,1724791855693,-500.0,0.0001178,2]
[336363296,1724791855703,-2000.0,0.000118,2]
[336363297,1724791855713,-2011.0,0.000118,2]
[336363298,1724791855723,-2000.0,0.000118,2]
[336363299,1724791855733,-2000.0,0.000118,2]
[336363300,1724791855743,-1433.0,0.000118,2]
[336363301,1724791855753,-1820.66345823,0.000118,2]
[336363302,1724791855764,-500.0,0.00011821,2]
[336363303,1724791855774,-1000.0,0.00011821,2]
[336363304,1724791855785,-161.7068405,0.00011867,2]
[336363305,1724791855794,-745.869667,0.000119,2]
[336363306,1724791855805,-745.869667,0.000119,2]
[336363307,1724791855815,-151.0,0.000119,2]
[336363308,1724791855826,-151.0,0.000119,2]
[336363309,1724791855837,-151.0,0.000119,2]
[336363310,1724791855847,-151.0,0.000119,2]
[336363311,1724791855858,-161.432437,0.000119,2]
[336363312,1724791855868,-151.0,0.000119,2]
[336363313,1724791855879,-161.432437,0.000119,2]
[336363314,1724791855889,-151.0,0.000119,2]
[336363315,1724791855898,-170.564818,0.000119,2]
[336363316,1724791855908,-170.564818,0.000119,2]
[336363317,1724791855919,-151.0,0.000119,2]
[336363318,1724791855928,-151.0,0.000119,2]
[336363319,1724791855938,-151.0,0.000119,2]
[336363320,1724791855948,-151.0,0.000119,2]
[336363321,1724791855958,-151.0,0.000119,2]
[336363322,1724791855968,-151.0,0.000119,2]
[336363323,1724791855978,-246.929458,0.000119,2]
[336363324,1724791855989,-246.929458,0.000119,2]
[336363325,1724791855999,-168.572264,0.000119,2]
[336363326,1724791856010,-168.572264,0.000119,2]
[336363327,1724791856020,-151.0,0.000119,2]
[336363328,1724791856030,-151.0,0.000119,2]
[336363329,1724791856040,-151.0,0.000119,2]
[336363330,1724791856051,-486.485909,0.000119,2]
[336363331,1724791856060,-220.188812,0.000119,2]
[336363332,1724791856070,-486.485909,0.000119,2]
[336363333,1724791856080,-151.0,0.000119,2]
[336363334,1724791856090,-993.61505,0.000119,2]
[336363335,1724791856100,-993.61505,0.000119,2]
[336363336,1724791856110,-151.0,0.000119,2]
[336363337,1724791856120,-151.0,0.000119,2]
[336363338,1724791856130,-814.218633,0.000119,2]
[336363339,1724791856140,-151.0,0.000119,2]
[336363340,1724791856150,-814.218633,0.000119,2]
[336363341,1724791856159,-151.0,0.000119,2]
[336363342,1724791856169,-806.858709,0.000119,2]
[336363343,1724791856178,-806.858709,0.000119,2]
[336363344,1724791856188,-279.06641,0.000119,2]
[336363345,1724791856198,-279.06641,0.000119,2]
[336363346,1724791856207,-283.854369,0.000119,2]
[336363347,1724791856433,-151.0,0.000119,2]
[336363348,1724791856444,-283.854369,0.000119,2]
[336363349,1724791856455,-871.074573,0.000119,2]
[336363350,1724791856467,-871.074573,0.000119,2]
[336363351,1724791856477,-1353.567264,0.000119,2]
[336363352,1724791856487,-1353.567264,0.000119,2]
[336363353,1724791856497,-577.456044,0.000119,2]
[336363354,1724791856507,-577.456044,0.000119,2]
[336363355,1724791856516,-394.853108,0.000119,2]
[336363356,1724791856525,-394.853108,0.000119,2]
[336363357,1724791856537,-499.632707,0.000119,2]
[336363358,1724791856546,-152952.552852,0.000119,2]
[336363359,1724791856555,-499.632707,0.000119,2]
[336363360,1724791856565,-405.479251,0.000119,2]
[336363361,1724791856574,-151.0,0.000119,2]
[336363362,1724791856584,-405.479251,0.000119,2]
[336363363,1724791856594,-413.110278,0.000119,2]
[336363364,1724791856604,-442.445292,0.000119,2]
[336363365,1724791856618,-413.110278,0.000119,2]
[336363366,1724791856628,-442.445292,0.000119,2]
[336363367,1724791856637,-151.0,0.000119,2]
[336363368,1724791856647,-4781.722826,0.000119,2]
[336363369,1724791856656,-151.0,0.000119,2]
[336363370,1724791856669,-503.69332,0.000119,2]
[336363371,1724791856679,-4781.722826,0.000119,2]
[336363372,1724791856689,-503.69332,0.000119,2]
[336363373,1724791856699,-151.0,0.000119,2]
[336363374,1724791856710,-151.0,0.000119,2]
[336363375,1724791856719,-419.515456,0.000119,2]
[336363376,1724791856729,-234.453502,0.000119,2]
[336363377,1724791856738,-419.515456,0.000119,2]
[336363378,1724791856748,-234.453502,0.000119,2]
[336363379,1724791856757,-266.094717,0.000119,2]
[336363380,1724791856767,-266.094717,0.000119,2]
[336363381,1724791856776,-2714.82142664,0.00011987,2]
[336363382,1724791856786,-728.47875039,0.00011999,2]
[336363383,1724791856796,-1766.96117072,0.00012,2]
[336363384,1724791856806,-151.0,0.00012054,2]
[336363385,1724791856815,-151.0,0.00012054,2]
[336363386,1724791856825,-500.0,0.00012054,2]
[336363387,1724791856835,-500.0,0.00012054,2]
[336363388,1724791856845,-500.0,0.00012054,2]
[336363389,1724791856855,-500.0,0.00012054,2]
[336363390,1724791856865,-500.0,0.00012054,2]
[336363391,1724791856875,-625.54,0.00012054,2]
[336363392,1724791856885,-500.0,0.00012054,2]
[336363393,1724791856894,-599.95,0.00012054,2]
[336363394,1724791856904,-587.03,0.00012054,2]
[336363395,1724791856913,-500.0,0.00012054,2]
[336363396,1724791856923,-500.0,0.00012054,2]
[336363397,1724791856934,-261.22,0.00012054,2]
[336363398,1724791856947,-500.0,0.00012054,2]
[336363399,1724791856957,-500.0,0.00012054,2]
[336363400,1724791856968,-500.0,0.00012054,2]
[336363401,1724791856979,-2253.51,0.00012054,2]
[336363402,1724791856992,-386.70328874,0.00012054,2]
[336363403,1724791857003,-574.1,0.00012054,2]
[336363404,1724791857014,-500.0,0.00012054,2]
[336363405,1724791857024,-500.0,0.00012054,2]
[336363406,1724791857034,-628.4,0.00012054,2]
[336363407,1724791857044,-500.0,0.00012054,2]
[336363408,1724791857055,-500.0,0.00012054,2]
[336363409,1724791857066,-500.0,0.00012054,2]
[336363410,1724791857076,-500.0,0.00012054,2]
[336363411,1724791857087,-500.0,0.00012054,2]
[336363412,1724791857096,-500.0,0.00012054,2]
[336363413,1724791857108,-500.0,0.00012054,2]
[336363414,1724791857119,-447.91,0.00012054,2]
[336363415,1724791857129,-614.99708397,0.00012054,2]
[336363416,1724791857140,-500.0,0.00012054,2]
[336363417,1724791857151,-500.0,0.00012054,2]
[336363418,1724791857162,-500.0,0.00012054,2]
[336363419,1724791857173,-599.05,0.00012054,2]
[336363420,1724791857183,-500.0,0.00012054,2]
[336363421,1724791857193,-500.0,0.00012054,2]
[336363422,1724791857203,-500.0,0.00012054,2]
[336363423,1724791857213,-500.0,0.00012054,2]
[336363424,1724791857222,-500.0,0.00012054,2]
[336363425,1724791857232,-500.0,0.00012054,2]
[336363426,1724791857242,-568.64,0.00012054,2]
[336363427,1724791857252,-1278.68,0.00012054,2]
[336363428,1724791857262,-500.0,0.00012054,2]
[336363429,1724791857271,-500.0,0.00012054,2]
[336363430,1724791857281,-500.0,0.00012054,2]
[336363431,1724791857290,-642.55,0.00012054,2]
[336363432,1724791857299,-500.0,0.00012054,2]
[336363433,1724791857309,-2092.95,0.00012054,2]
[336363434,1724791857318,-500.0,0.00012054,2]
[336363435,1724791857329,-500.0,0.00012054,2]
[336363436,1724791857338,-500.0,0.00012054,2]
[336363437,1724791857348,-500.0,0.00012054,2]
[336363438,1724791857358,-500.0,0.00012054,2]
[336363439,1724791857368,-500.0,0.00012054,2]
[336363440,1724791857378,-500.0,0.00012054,2]
[336363441,1724791857388,-252.22996809,0.00012054,2]
[336363442,1724791857400,-500.0,0.00012054,2]
[336363443,1724791857410,-500.0,0.00012054,2]
[336363444,1724791857420,-864.12,0.00012054,2]
[336363445,1724791857429,-500.0,0.00012054,2]
[336363446,1724791857439,-500.0,0.00012054,2]
[336363447,1724791857448,-240.32,0.00012054,2]
[336363448,1724791857461,-500.0,0.00012054,2]
[336363449,1724791857473,-500.0,0.00012054,2]
[336363450,1724791857483,-500.0,0.00012054,2]
[336363451,1724791857492,-500.0,0.00012054,2]
[336363452,1724791857503,-1680.46,0.00012054,2]
[336363453,1724791857513,-500.0,0.00012054,2]
[336363454,1724791857522,-500.0,0.00012054,2]
[336363455,1724791857532,-500.0,0.00012054,2]
[336363456,1724791857542,-500.0,0.00012054,2]
[336363457,1724791857552,-500.0,0.00012054,2]
[336363458,1724791857561,-500.0,0.00012054,2]
[336363459,1724791857570,-500.0,0.00012054,2]
[336363460,1724791857580,-500.0,0.00012054,2]
[336363461,1724791857589,-802.57,0.00012054,2]
[336363462,1724791857599,-500.0,0.00012054,2]
[336363463,1724791857609,-500.0,0.00012054,2]
[336363464,1724791857618,-500.0,0.00012054,2]
[336363465,1724791857628,-500.0,0.00012054,2]
[336363466,1724791857637,-1114.14,0.00012054,2]
[336363467,1724791857646,-500.0,0.00012054,2]
[336363468,1724791857656,-500.0,0.00012054,2]
[336363469,1724791857665,-500.0,0.00012054,2]
[336363470,1724791857675,-588.01,0.00012054,2]
[336363471,1724791857684,-500.0,0.00012054,2]
[336363472,1724791857694,-512.95338622,0.00012054,2]
[336363473,1724791857704,-500.0,0.00012054,2]
[336363474,1724791857713,-518.15,0.00012054,2]
[336363475,1724791857723,-500.0,0.00012054,2]
[336363476,1724791857732,-500.0,0.00012054,2]
[336363477,1724791857744,-1721.06,0.00012054,2]
[336363478,1724791857755,-5697.94,0.00012054,2]
[336363479,1724791857765,-500.0,0.00012054,2]
[336363480,1724791857774,-500.0,0.00012054,2]
[336363481,1724791857786,-500.0,0.00012054,2]
[336363482,1724791857796,-500.0,0.00012054,2]
[336363483,1724791857807,-500.0,0.00012054,2]
[336363484,1724791857816,-3414.64,0.00012054,2]
[336363485,1724791857827,-533.09,0.00012054,2]
[336363486,1724791857836,-9427.81,0.00012054,2]
[336363487,1724791857847,-192.01,0.00012054,2]
[336363488,1724791857859,-4323.37,0.00012054,2]
[336363489,1724791857869,-542.1,0.00012054,2]
[336363490,1724791857879,-500.0,0.00012054,2]
[336363491,1724791857890,-1482.45,0.00012054,2]
[336363492,1724791857901,-500.0,0.00012054,2]
[336363493,1724791857911,-500.0,0.00012054,2]
[336363494,1724791857920,-3323.04,0.00012054,2]
[336363495,1724791857931,-25786.41,0.00012054,2]
[336363496,1724791857942,-785.67,0.00012054,2]
[336363497,1724791857953,-500.0,0.00012054,2]
[336363498,1724791857964,-5232.19,0.00012054,2]
[336363499,1724791857975,-1359.99,0.00012054,2]
[336363500,1724791857984,-178.03,0.00012054,2]
[336363501,1724791857995,-500.0,0.00012054,2]
[336363502,1724791858005,-500.0,0.00012054,2]
[336363503,1724791858015,-500.0,0.00012054,2]
[336363504,1724791858025,-500.0,0.00012054,2]
[336363505,1724791858035,-6257.78,0.00012054,2]
[336363506,1724791858045,-500.0,0.00012054,2]
[336363507,1724791858055,-757.55,0.00012054,2]
[336363508,1724791858066,-594.11900171,0.00012054,2]
[336363509,1724791858076,-500.0,0.00012054,2]
[336363510,1724791858086,-500.0,0.00012054,2]
[336363511,1724791858096,-500.0,0.00012054,2]
[336363512,1724791858105,-500.0,0.00012054,2]
[336363513,1724791858115,-500.0,0.00012054,2]
[336363514,1724791858125,-500.0,0.00012054,2]
[336363515,1724791858135,-500.0,0.00012054,2]
[336363516,1724791858147,-500.0,0.00012054,2]
[336363517,1724791858157,-500.0,0.00012054,2]
[336363518,1724791858167,-500.0,0.00012054,2]
[336363519,1724791858180,-500.0,0.00012054,2]
[336363520,1724791858191,-2172.76,0.00012054,2]
[336363521,1724791858202,-500.0,0.00012054,2]
[336363522,1724791858214,-500.0,0.00012054,2]
[336363523,1724791858224,-500.0,0.00012054,2]
[336363524,1724791858235,-500.0,0.00012054,2]
[336363525,1724791858245,-500.0,0.00012054,2]
[336363526,1724791858257,-500.0,0.00012054,2]
[336363527,1724791858268,-4454.24,0.00012054,2]
[336363528,1724791858279,-500.0,0.00012054,2]
[336363529,1724791858290,-500.0,0.00012054,2]
[336363530,1724791858300,-500.0,0.00012054,2]
[336363531,1724791858309,-500.0,0.00012054,2]
[336363532,1724791858318,-2177.58,0.00012054,2]
[336363533,1724791858328,-500.0,0.00012054,2]
[336363534,1724791858337,-500.0,0.00012054,2]
[336363535,1724791858348,-500.0,0.00012054,2]
[336363536,1724791858358,-500.0,0.00012054,2]
[336363537,1724791858368,-518.72,0.00012054,2]
[336363538,1724791858377,-500.0,0.00012054,2]
[336363539,1724791858387,-500.0,0.00012054,2]
[336363540,1724791858397,-1367.25,0.00012054,2]
[336363541,1724791858407,-500.0,0.00012054,2]
[336363542,1724791858416,-500.0,0.00012054,2]
[336363543,1724791858426,-498.02172451,0.00012054,2]
[336363544,1724791858436,-500.0,0.00012054,2]
[336363545,1724791858445,-500.0,0.00012054,2]
[336363546,1724791858455,-16362.44,0.00012054,2]
[336363547,1724791858469,-500.0,0.00012054,2]
[336363548,1724791858478,-1299.46,0.00012054,2]
[336363549,1724791858488,-500.0,0.00012054,2]
[336363550,1724791858497,-500.0,0.00012054,2]
[336363551,1724791858507,-631.98390341,0.00012054,2]
[336363552,1724791858517,-500.0,0.00012054,2]
[336363553,1724791858527,-500.0,0.00012054,2]
[336363554,1724791858539,-2300.68,0.00012054,2]
[336363555,1724791858549,-6858.8,0.00012054,2]
[336363556,1724791858559,-500.0,0.00012054,2]
[336363557,1724791858570,-5721.29,0.00012054,2]
[336363558,1724791858579,-591.36,0.00012054,2]
[336363559,1724791858588,-500.0,0.00012054,2]
[336363560,1724791858599,-500.0,0.00012054,2]
[336363561,1724791858611,-5054.75,0.00012054,2]
[336363562,1724791858620,-500.0,0.00012054,2]
[336363563,1724791858630,-500.0,0.00012054,2]
[336363564,1724791858640,-500.0,0.00012054,2]
[336363565,1724791858652,-500.0,0.00012054,2]
[336363566,1724791858663,-500.0,0.00012054,2]
[336363567,1724791858673,-500.0,0.00012054,2]
[336363568,1724791858684,-8359.04,0.00012054,2]
[336363569,1724791858695,-500.0,0.00012054,2]
[336363570,1724791858705,-500.0,0.00012054,2]
[336363571,1724791858715,-500.0,0.00012054,2]
[336363572,1724791858726,-500.0,0.00012054,2]
[336363573,1724791858736,-218.50278203,0.00012054,2]
[336363574,1724791858747,-500.0,0.00012054,2]
[336363575,1724791858757,-500.0,0.00012054,2]
[336363576,1724791858766,-153.0,0.00012066,2]
[336363577,1724791858775,-292.05705526,0.00012327,2]
[336363578,1724791858787,-11997.07655228,0.00012327,2]
[336363579,1724791858797,-151.0,0.00012328,2]
[336363580,1724791858807,-265.07318,0.00012328,2]
[336363581,1724791858816,-151.0,0.00012328,2]
[336363582,1724791858827,-151.0,0.00012328,2]
[336363583,1724791858837,-151.0,0.00012328,2]
[336363584,1724791858849,-404.340141,0.00012328,2]
[336363585,1724791858861,-404.340141,0.00012328,2]
[336363586,1724791858871,-151.0,0.00012328,2]
[336363587,1724791858881,-375.857444,0.00012328,2]
[336363588,1724791858892,-375.857444,0.00012328,2]
[336363589,1724791858902,-500.0,0.00012328,2]
[336363590,1724791858911,-745.869667,0.00012328,2]
[336363591,1724791858921,-745.869667,0.00012328,2]
[336363592,1724791858930,-609.35,0.00012328,2]
[336363593,1724791858942,-151.0,0.00012328,2]
[336363594,1724791858954,-470.88,0.00012328,2]
[336363595,1724791858965,-218.9,0.00012328,2]
[336363596,1724791858976,-500.0,0.00012328,2]
[336363597,1724791858986,-151.0,0.00012328,2]
[336363598,1724791858996,-151.0,0.00012328,2]
[336363599,1724791859007,-151.0,0.00012328,2]
[336363600,1724791859016,-161.432437,0.00012328,2]
[336363601,1724791859026,-151.0,0.00012328,2]
[336363602,1724791859035,-161.432437,0.00012328,2]
[336363603,1724791859045,-227.88,0.00012328,2]
[336363604,1724791859055,-151.0,0.00012328,2]
[336363605,1724791859064,-170.564818,0.00012328,2]
[336363606,1724791859074,-170.564818,0.00012328,2]
[336363607,1724791859084,-587.03,0.00012328,2]
[336363608,1724791859093,-290.93984343,0.00012328,2]
[336363609,1724791859103,-500.0,0.00012328,2]
[336363610,1724791859113,-550.79,0.00012328,2]
[336363611,1724791859123,-161.57,0.00012328,2]
[336363612,1724791859132,-500.0,0.00012328,2]
[336363613,1724791859142,-2253.51,0.00012328,2]
[336363614,1724791859151,-151.0,0.00012328,2]
[336363615,1724791859161,-151.0,0.00012328,2]
[336363616,1724791859171,-151.0,0.00012328,2]
[336363617,1724791859181,-151.0,0.00012328,2]
[336363618,1724791859190,-500.0,0.00012328,2]
[336363619,1724791859200,-151.0,0.00012328,2]
[336363620,1724791859209,-500.0,0.00012328,2]
[336363621,1724791859218,-151.0,0.00012328,2]
[336363622,1724791859228,-500.0,0.00012328,2]
[336363623,1724791859237,-245.78,0.00012328,2]
[336363624,1724791859246,-500.0,0.00012328,2]
[336363625,1724791859255,-500.0,0.00012328,2]
[336363626,1724791859265,-246.929458,0.00012328,2]
[336363627,1724791859275,-246.929458,0.00012328,2]
[336363628,1724791859285,-500.0,0.00012328,2]
[336363629,1724791859294,-500.0,0.00012328,2]
[336363630,1724791859304,-500.0,0.00012328,2]
[336363631,1724791859314,-500.0,0.00012328,2]
[336363632,1724791859323,-599.05,0.00012328,2]
[336363633,1724791859334,-406.2,0.00012328,2]
[336363634,1724791859344,-500.0,0.00012328,2]
[336363635,1724791859354,-500.0,0.00012328,2]
[336363636,1724791859364,-500.0,0.00012328,2]
[336363637,1724791859373,-500.0,0.00012328,2]
[336363638,1724791859383,-1278.68,0.00012328,2]
[336363639,1724791859392,-500.0,0.00012328,2]
[336363640,1724791859402,-500.0,0.00012328,2]
[336363641,1724791859412,-500.0,0.00012328,2]
[336363642,1724791859421,-500.0,0.00012328,2]
[336363643,1724791859432,-168.572264,0.00012328,2]
[336363644,1724791859441,-2092.95,0.00012328,2]
[336363645,1724791859451,-168.572264,0.00012328,2]
[336363646,1724791859466,-500.0,0.00012328,2]
[336363647,1724791859476,-500.0,0.00012328,2]
[336363648,1724791859485,-500.0,0.00012328,2]
[336363649,1724791859495,-151.0,0.00012328,2]
[336363650,1724791859506,-500.0,0.00012328,2]
[336363651,1724791859515,-253.03,0.00012328,2]
[336363652,1724791859525,-500.0,0.00012328,2]
[336363653,1724791859666,-500.0,0.00012328,2]
[336363654,1724791859676,-500.0,0.00012328,2]
[336363655,1724791859686,-500.0,0.00012328,2]
[336363656,1724791859696,-864.12,0.00012328,2]
[336363657,1724791859705,-151.0,0.00012328,2]
[336363658,1724791859715,-500.0,0.00012328,2]
[336363659,1724791859725,-151.0,0.00012328,2]
[336363660,1724791859734,-334.24,0.00012328,2]
[336363661,1724791859743,-500.0,0.00012328,2]
[336363662,1724791859753,-500.0,0.00012328,2]
[336363663,1724791859762,-500.0,0.00012328,2]
[336363664,1724791859772,-500.0,0.00012328,2]
[336363665,1724791859782,-1680.46,0.00012328,2]
[336363666,1724791859792,-486.485909,0.00012328,2]
[336363667,1724791859802,-486.485909,0.00012328,2]
[336363668,1724791859811,-500.0,0.00012328,2]
[336363669,1724791859821,-555.613438,0.00012328,2]
[336363670,1724791859830,-151.0,0.00012328,2]
[336363671,1724791859840,-993.61505,0.00012328,2]
[336363672,1724791859849,-993.61505,0.00012328,2]
[336363673,1724791859862,-500.0,0.00012328,2]
[336363674,1724791859877,-500.0,0.00012328,2]
[336363675,1724791859887,-500.0,0.00012328,2]
[336363676,1724791859898,-151.0,0.00012328,2]
[336363677,1724791859908,-567.27,0.00012328,2]
[336363678,1724791859918,-500.0,0.00012328,2]
[336363679,1724791859927,-250.43,0.00012328,2]
[336363680,1724791859937,-802.57,0.00012328,2]
[336363681,1724791859946,-151.0,0.00012328,2]
[336363682,1724791859959,-500.0,0.00012328,2]
[336363683,1724791859968,-814.218633,0.00012328,2]
[336363684,1724791859980,-500.0,0.00012328,2]
[336363685,1724791859991,-151.0,0.00012328,2]
[336363686,1724791860001,-500.0,0.00012328,2]
[336363687,1724791860011,-814.218633,0.00012328,2]
[336363688,1724791860021,-621.63,0.00012328,2]
[336363689,1724791860031,-1114.14,0.00012328,2]
[336363690,1724791860040,-500.0,0.00012328,2]
[336363691,1724791860049,-500.0,0.00012328,2]
[336363692,1724791860060,-151.0,0.00012328,2]
[336363693,1724791860070,-500.0,0.00012328,2]
[336363694,1724791860079,-806.858709,0.00012328,2]
[336363695,1724791860089,-588.01,0.00012328,2]
[336363696,1724791860100,-806.858709,0.00012328,2]
[336363697,1724791860110,-500.0,0.00012328,2]
[336363698,1724791860129,-253.26,0.00012328,2]
[336363699,1724791860140,-279.06641,0.00012328,2]
[336363700,1724791860150,-279.06641,0.00012328,2]
[336363701,1724791860161,-283.854369,0.00012328,2]
[336363702,1724791860171,-500.0,0.00012328,2]
[336363703,1724791860181,-500.0,0.00012328,2]
[336363704,1724791860191,-1721.06,0.00012328,2]
[336363705,1724791860201,-5697.94,0.00012328,2]
[336363706,1724791860210,-151.0,0.00012328,2]
[336363707,1724791860219,-283.854369,0.00012328,2]
[336363708,1724791860229,-500.0,0.00012328,2]
[336363709,1724791860238,-544.5,0.00012328,2]
[336363710,1724791860248,-500.0,0.00012328,2]
[336363711,1724791860257,-500.0,0.00012328,2]
[336363712,1724791860267,-3414.64,0.00012328,2]
[336363713,1724791860277,-9427.81,0.00012328,2]
[336363714,1724791860286,-4323.37,0.00012328,2]
[336363715,1724791860298,-871.074573,0.00012328,2]
[336363716,1724791860308,-500.0,0.00012328,2]
[336363717,1724791860317,-871.074573,0.00012328,2]
[336363718,1724791860329,-1482.45,0.00012328,2]
[336363719,1724791860340,-451.7853251,0.00012328,2]
[336363720,1724791860349,-1353.567264,0.00012328,2]
[336363721,1724791860359,-500.0,0.00012328,2]
[336363722,1724791860376,-1353.567264,0.00012328,2]
[336363723,1724791860386,-577.456044,0.00012328,2]
[336363724,1724791860395,-421.70652672,0.00012328,2]
[336363725,1724791860964,-23.6724,0.00010958,2]
[336363727,1724791870722,500.0,0.00025,120]
[336363728,1724791871141,500.0,0.00025,120]
[336363729,1724791871583,500.0,0.00025,120]
[336363730,1724791872030,496.47482966,0.00025,120]
[336363731,1724791891930,162.643746,0.00010308,2]
[336363733,1724791941510,436.69807068,0.00010308,2]
[336363748,1724792751930,-741.13589628,7.911e-05,2]
[336363750,1724792828154,-371.00489809,7.911e-05,2]
[336363751,1724792828176,-421.80379174,7.911e-05,2]
[336363752,1724792833196,-240.22540655,7.911e-05,2]
[336363754,1724792852098,-241.78587774,7.911e-05,2]
[336363755,1724792852119,-269.48079677,7.911e-05,2]
[336363756,1724792852141,-268.56049146,9.524e-05,2]
[336363757,1724792854103,-154.09999059,9.524e-05,2]
[336363758,1724792854125,-162.643746,9.623e-05,2]
[336363759,1724792854147,-155.80478878,9.899e-05,2]
[336363760,1724792854168,-300.0,9.904e-05,2]